bitfinex-derivatives/quotes_BTCF0:USTF0_20241210
["timestamp","ask_amount","ask_price","bid_price","bid_amount"]
[1733803249926,0.36088,96792.0,96753.0,0.3608]
[1733803249927,0.051635,96779.0,96755.0,0.1098]
[1733803250123,0.3608,96774.0,96768.0,0.01042502]
[1733803250418,8e-05,96769.0,96768.0,0.00155008]
[1733803250622,8e-05,96769.0,96768.0,0.00165328]
[1733803251225,8e-05,96769.0,96768.0,0.01165328]
[1733803251727,8e-05,96769.0,96768.0,0.00765328]
[1733803253215,8e-05,96769.0,96768.0,0.00565328]
[1733803253530,8e-05,96769.0,96768.0,0.00265328]
[1733803253729,8e-05,96769.0,96768.0,0.00465328]
[1733803254325,8e-05,96769.0,96768.0,0.00565328]
[1733803254529,8e-05,96769.0,96768.0,0.00465328]
[1733803254829,8e-05,96769.0,96768.0,0.00265328]
[1733803255024,8e-05,96769.0,96768.0,0.00365328]
[1733803255222,8e-05,96769.0,96768.0,0.00265328]
[1733803255531,8e-05,96769.0,96768.0,0.00465328]
[1733803256522,8e-05,96769.0,96768.0,0.00565328]
[1733803256723,8e-05,96769.0,96768.0,0.00894642]
[1733803256923,8e-05,96769.0,96766.0,0.08645328]
[1733803257127,8e-05,96769.0,96768.0,0.001]
[1733803257532,0.051639,96770.0,96768.0,0.002]
[1733803257725,0.051639,96770.0,96769.0,0.00010132]
[1733803257922,0.051639,96770.0,96769.0,0.00014132]
[1733803258433,0.3608,96774.0,96769.0,0.00014132]
[1733803258824,0.3608,96774.0,96773.0,4e-05]
[1733803260436,0.3608,96790.0,96773.0,0.36084]
[1733803260738,0.002,96774.0,96773.0,0.36084]
[1733803260929,0.002,96774.0,96773.0,0.7216]
[1733803261125,0.051627,96794.0,96773.0,0.7226]
[1733803261331,0.34696,96795.0,96786.0,0.3608]
[1733803261635,0.3608,96787.0,96773.0,0.3618]
[1733803261832,0.3608,96787.0,96773.0,0.3668]
[1733803262020,0.412431,96787.0,96773.0,0.3668]
[1733803262438,0.051631,96785.0,96773.0,0.3668]
[1733803262637,0.051631,96785.0,96773.0,0.3698]
[1733803263239,0.051632,96784.0,96773.0,0.3628]
[1733803263830,0.3608,96787.0,96773.0,0.3628]
[1733803264032,0.412431,96787.0,96773.0,0.3628]
[1733803264231,0.412431,96787.0,96786.0,4e-05]
[1733803264425,0.412431,96787.0,96786.0,0.04520772]
[1733803264732,0.412431,96787.0,96773.0,0.002]
[1733803264733,0.051637,96774.0,96773.0,0.002]
[1733803264935,0.412437,96774.0,96773.0,0.002]
[1733803265233,0.412517,96774.0,96773.0,0.002]
[1733803265935,0.412517,96774.0,96773.0,0.001]
[1733803266135,0.412517,96774.0,96769.0,0.00010132]
[1733803266136,0.36388,96774.0,96769.0,0.00010132]
[1733803266331,0.051639,96770.0,96769.0,0.00010132]
[1733803266531,0.051719,96770.0,96769.0,0.00010132]
[1733803267429,0.054719,96770.0,96769.0,0.00010132]
[1733803267837,0.00308,96770.0,96769.0,0.00010132]
[1733803268731,0.00508,96770.0,96769.0,0.00010132]
[1733803269536,0.09255189,96794.0,96769.0,0.66090132]
[1733803269737,0.3608,96798.0,96769.0,0.66090132]
[1733803269738,0.3608,96798.0,96783.0,0.3608]
[1733803269941,0.3608,96798.0,96785.0,0.24501669]
[1733803270130,0.3608,96798.0,96787.0,0.24501669]
[1733803270438,0.3608,96798.0,96792.0,0.00141871]
[1733803270742,0.001,96794.0,96792.0,0.00141871]
[1733803271336,0.3618,96798.0,96792.0,0.00141871]
[1733803271531,0.001,96798.0,96795.0,0.00141871]
[1733803271735,0.001,96798.0,96797.0,4e-05]
[1733803272640,0.001,96798.0,96797.0,0.00145871]
[1733803273736,0.001,96798.0,96797.0,0.01029173]
[1733803274039,0.002,96798.0,96797.0,0.00145871]
[1733803274632,0.001,96798.0,96797.0,0.00145871]
[1733803274835,0.002,96798.0,96797.0,0.00145871]
[1733803275430,0.001,96798.0,96797.0,0.00145871]
[1733803275632,0.004,96798.0,96797.0,0.00145871]
[1733803276126,0.008,96798.0,96797.0,0.00145871]
[1733803276737,0.01,96798.0,96797.0,0.00245871]
[1733803277333,0.01,96798.0,96797.0,0.00230871]
[1733803277536,0.007,96798.0,96797.0,0.00230871]
[1733803277742,0.004,96798.0,96797.0,0.00130871]
[1733803278038,0.005,96798.0,96797.0,0.00130871]
[1733803278447,0.001,96798.0,96797.0,0.00130871]
[1733803278744,0.004,96798.0,96797.0,0.00130871]
[1733803279341,0.01,96798.0,96797.0,0.00230871]
[1733803280041,0.009,96798.0,96797.0,0.00230871]
[1733803280642,0.01,96798.0,96797.0,0.00230871]
[1733803281233,0.051631,96787.0,96786.0,0.24487829]
[1733803281439,0.051631,96787.0,96784.0,9.381e-05]
[1733803281440,0.051632,96785.0,96784.0,9.381e-05]
[1733803282740,0.14425433,96785.0,96784.0,9.381e-05]
[1733803283048,0.051632,96785.0,96784.0,9.381e-05]
[1733803283351,0.060632,96785.0,96784.0,0.00109381]
[1733803283844,0.058632,96785.0,96784.0,0.00109381]
[1733803284251,0.16629121,96785.0,96784.0,0.00109381]
[1733803284439,0.06667669,96785.0,96784.0,9.381e-05]
[1733803284644,0.07567669,96785.0,96784.0,0.00109381]
[1733803284955,0.051643,96763.0,96761.0,0.24487829]
[1733803285252,0.3608,96766.0,96757.0,0.24547075]
[1733803285461,0.3608,96766.0,96745.0,0.00155028]
[1733803285462,0.05022711,96758.0,96756.0,0.24547075]
[1733803285750,0.051647,96756.0,96755.0,0.24547075]
[1733803285951,0.051647,96756.0,96755.0,0.24554943]
[1733803286247,0.051727,96756.0,96755.0,7.868e-05]
[1733803286642,0.049727,96756.0,96755.0,7.868e-05]
[1733803287148,0.410527,96756.0,96755.0,7.868e-05]
[1733803287338,0.410527,96756.0,96755.0,0.00307868]
[1733803287751,0.41964238,96756.0,96755.0,0.00307868]
[1733803288448,0.410527,96756.0,96755.0,0.00307868]
[1733803288648,0.048727,96756.0,96755.0,0.00307868]
[1733803288849,0.048727,96756.0,96755.0,0.04825716]
[1733803289053,0.048727,96756.0,96755.0,0.04525716]
[1733803289254,0.048727,96756.0,96755.0,0.00207868]
[1733803289751,0.051727,96756.0,96755.0,7.868e-05]
[1733803290355,0.049727,96756.0,96755.0,7.868e-05]
[1733803291055,0.049727,96756.0,96755.0,0.04525716]
[1733803291349,0.00108,96756.0,96755.0,7.868e-05]
[1733803291556,0.3608,96766.0,96755.0,7.868e-05]
[1733803291848,0.3608,96766.0,96758.0,0.2453291]
[1733803292047,0.3608,96766.0,96755.0,0.24540778]
[1733803292252,0.412447,96757.0,96755.0,0.00307868]
[1733803292847,0.412447,96757.0,96755.0,0.00507868]
[1733803293049,8e-05,96756.0,96755.0,0.00507868]
[1733803293353,8e-05,96756.0,96755.0,0.00207868]
[1733803293751,8e-05,96756.0,96755.0,7.868e-05]
[1733803295243,0.00208,96756.0,96755.0,7.868e-05]
[1733803295445,0.00308,96756.0,96755.0,7.868e-05]
[1733803296249,0.01231779,96756.0,96755.0,7.868e-05]
[1733803296452,0.00308,96756.0,96755.0,7.868e-05]
[1733803297451,0.00308,96756.0,96728.0,0.2453291]
[1733803297452,0.05165,96752.0,96728.0,0.2453291]
[1733803297651,0.051662,96729.0,96727.0,0.6061291]
[1733803297851,0.051662,96729.0,96727.0,0.3608]
[1733803298044,0.051662,96729.0,96727.0,0.36975894]
[1733803298045,8e-05,96728.0,96727.0,0.36975894]
[1733803298248,8e-05,96728.0,96727.0,0.36988734]
[1733803298455,8e-05,96728.0,96727.0,0.36234729]
[1733803298649,0.36088,96728.0,96727.0,0.00154729]
[1733803298854,0.36088,96728.0,96727.0,0.01054729]
[1733803299355,0.36488,96728.0,96727.0,0.00154729]
[1733803299653,0.36688,96728.0,96727.0,0.00154729]
[1733803299858,0.00208,96728.0,96727.0,0.00154729]
[1733803300051,0.00708,96728.0,96727.0,0.00154729]
[1733803301356,0.00508,96728.0,96727.0,0.00154729]
[1733803301552,0.00708,96728.0,96727.0,0.00154729]
[1733803302150,0.00808,96728.0,96727.0,0.00254729]
[1733803302563,0.00208,96728.0,96727.0,0.00154729]
[1733803302951,0.00308,96728.0,96727.0,0.00154729]
[1733803303453,0.00108,96728.0,96727.0,0.00154729]
[1733803303655,0.00208,96728.0,96727.0,0.00154729]
[1733803304754,0.00108,96728.0,96727.0,0.00154729]
[1733803304951,0.00208,96728.0,96727.0,0.00154729]
[1733803305160,0.00408,96728.0,96727.0,0.00154729]
[1733803305564,0.00308,96728.0,96727.0,0.00154729]
[1733803305759,0.054741,96728.0,96727.0,0.00354729]
[1733803306057,0.051741,96728.0,96727.0,0.00654729]
[1733803306457,0.051741,96728.0,96727.0,0.00454729]
[1733803306661,0.051741,96728.0,96727.0,0.00354729]
[1733803307656,0.051741,96728.0,96727.0,0.24847254]
[1733803308362,0.052741,96728.0,96727.0,0.00154729]
[1733803308762,0.051741,96728.0,96727.0,0.00254729]
[1733803309064,0.051741,96728.0,96727.0,0.00354729]
[1733803309856,0.051741,96728.0,96727.0,0.00254729]
[1733803310056,0.051741,96728.0,96727.0,0.00354729]
[1733803310860,0.051741,96728.0,96727.0,0.04874869]
[1733803311563,0.051741,96728.0,96727.0,0.35094645]
[1733803311762,0.052741,96728.0,96727.0,0.34994645]
[1733803311961,0.00108,96728.0,96727.0,0.34994645]
[1733803312269,0.051646,96757.0,96728.0,0.1711]
[1733803312576,0.051646,96757.0,96753.0,0.24521141]
[1733803312866,0.36268,96778.0,96756.0,4e-05]
[1733803312867,0.051642,96764.0,96756.0,4e-05]
[1733803313059,0.051642,96764.0,96757.0,0.0452014]
[1733803313260,0.051642,96764.0,96763.0,4e-05]
[1733803313466,0.051642,96764.0,96763.0,0.27329539]
[1733803314359,0.051638,96772.0,96763.0,0.27329539]
[1733803314565,0.051638,96772.0,96771.0,0.3608]
[1733803314759,0.051638,96772.0,96771.0,0.4060414]
[1733803315166,0.051638,96772.0,96771.0,0.71219645]
[1733803315370,0.051638,96772.0,96771.0,0.4060414]
[1733803315673,0.060638,96772.0,96771.0,0.40987918]
[1733803316262,0.060638,96772.0,96771.0,0.36467778]
[1733803316466,0.067638,96772.0,96771.0,0.36567778]
[1733803317563,0.016,96772.0,96771.0,0.36567778]
[1733803317968,0.016,96772.0,96771.0,0.67175287]
[1733803318270,0.016,96772.0,96771.0,0.36567778]
[1733803318469,0.016,96772.0,96771.0,0.6712158]
[1733803318663,0.012,96772.0,96771.0,0.36567778]
[1733803319063,0.005,96772.0,96771.0,0.36467778]
[1733803319365,0.007,96772.0,96771.0,0.36467778]
[1733803320376,0.007,96772.0,96771.0,0.04907918]
[1733803320674,0.007,96772.0,96771.0,0.00387778]
[1733803321070,0.007,96772.0,96771.0,0.24814244]
[1733803321266,0.007,96772.0,96771.0,0.00387778]
[1733803322467,0.007,96772.0,96771.0,0.04907918]
[1733803322674,0.007,96772.0,96771.0,0.00387778]
[1733803322975,0.007,96772.0,96771.0,0.00397811]
[1733803323569,0.007,96772.0,96771.0,0.24783202]
[1733803323870,0.007,96772.0,96771.0,0.00397811]
[1733803323871,0.3678,96772.0,96771.0,0.00397811]
[1733803324366,0.48032633,96772.0,96771.0,0.00397811]
[1733803325474,0.1105,96772.0,96771.0,0.00397811]
[1733803325663,0.007,96772.0,96771.0,0.00397811]
[1733803326565,0.01629804,96772.0,96771.0,0.00397811]
[1733803327676,0.007,96772.0,96771.0,0.00397811]
[1733803328375,0.007,96772.0,96771.0,0.01303106]
[1733803329471,0.005,96772.0,96771.0,0.01503106]
[1733803330673,0.001,96772.0,96771.0,0.02103106]
[1733803331174,0.051635,96780.0,96771.0,0.01603106]
[1733803331372,0.3608,96781.0,96771.0,0.01603106]
[1733803331373,0.3608,96781.0,96771.0,0.00597811]
[1733803331570,0.051636,96777.0,96776.0,0.00283778]
[1733803334172,0.052636,96777.0,96776.0,0.00283778]
[1733803334868,0.057636,96777.0,96776.0,0.00383778]
[1733803335379,0.059636,96777.0,96776.0,0.00383778]
[1733803335768,0.06860535,96777.0,96776.0,0.00383778]
[1733803335968,0.07260535,96777.0,96776.0,0.00383778]
[1733803336780,0.008,96777.0,96776.0,0.00383778]
[1733803337077,0.013,96777.0,96776.0,0.00383778]
[1733803337677,0.012,96777.0,96776.0,0.00383778]
[1733803338280,0.004,96777.0,96776.0,0.00683778]
[1733803338867,0.004,96777.0,96776.0,0.00783778]
[1733803339875,0.3608,96781.0,96776.0,0.00783778]
[1733803340080,0.051635,96780.0,96778.0,0.24484538]
[1733803340382,0.051635,96780.0,96777.0,0.30553802]
[1733803340682,0.051635,96780.0,96778.0,0.00283778]
[1733803341584,0.003,96780.0,96779.0,0.00283778]
[1733803341780,0.0951,96799.0,96779.0,0.00283778]
[1733803341781,0.051626,96798.0,96779.0,0.00283778]
[1733803341977,0.3608,96802.0,96795.0,0.24502888]
[1733803342179,0.3608,96802.0,96789.0,0.3608]
[1733803342180,0.0925,96804.0,96799.0,0.3062861]
[1733803342382,0.051624,96801.0,96799.0,0.3062861]
[1733803342575,0.04878622,96800.0,96792.0,0.36781712]
[1733803342782,0.04878622,96800.0,96799.0,0.30616565]
[1733803343177,0.0001273,96806.0,96799.0,9.851e-05]
[1733803343393,0.0001273,96806.0,96802.0,0.00141837]
[1733803343697,0.34186672,96833.0,96805.0,4e-05]
[1733803343990,0.16121402,96833.0,96810.0,0.12295415]
[1733803344194,0.16121402,96833.0,96806.0,0.00967845]
[1733803344494,0.16121402,96833.0,80944.0,0.015]
[1733803345093,1.78982543,96806.0,96732.0,0.0839117]
[1733803345280,0.40062871,96800.0,96501.0,0.69431079]
[1733803345481,0.01,96771.0,96660.0,0.49059327]
[1733803345798,0.01,96771.0,96573.0,0.61475225]
[1733803345799,0.01,96621.0,96579.0,0.347]
[1733803346095,0.3608,96601.0,96600.0,0.02136255]
[1733803346286,2.04913462,96601.0,96600.0,0.02136255]
[1733803346476,2.72177043,96601.0,96600.0,0.02148003]
[1733803346678,2.72185043,96601.0,96600.0,3e-08]
[1733803346882,0.05174,96584.0,96564.0,0.0971]
[1733803347191,0.41255,96565.0,96564.0,0.0971]
[1733803347490,2.10096462,96565.0,96564.0,0.0971]
[1733803347881,2.10096462,96565.0,96512.0,0.3608]
[1733803347882,2.73201246,96565.0,96512.0,0.3608]
[1733803348083,0.39644889,96522.0,96505.0,0.34724]
[1733803348289,8e-05,96513.0,96505.0,0.34724]
[1733803348492,8e-05,96506.0,96505.0,0.64724]
[1733803348789,2.07737028,96506.0,96505.0,0.64858407]
[1733803348983,2.07743348,96506.0,96505.0,0.64658407]
[1733803349179,0.67234099,96506.0,96505.0,1.00738407]
[1733803349493,0.51799099,96506.0,96505.0,1.00746266]
[1733803349690,0.4906532,96515.0,96505.0,1.00746266]
[1733803349990,0.33236483,96548.0,96514.0,0.6538]
[1733803350186,0.80146226,96569.0,96545.0,0.3608]
[1733803350383,0.80146226,96568.0,96556.0,0.3608]
[1733803350579,0.67296883,96567.0,96556.0,0.3608]
[1733803350778,0.62245964,96590.0,96566.0,0.3608]
[1733803350779,0.80146226,96574.0,96566.0,0.3608]
[1733803350987,0.67292307,96573.0,96567.0,0.3608]
[1733803351187,1.73601563,96572.0,96567.0,0.3608]
[1733803351384,1.73601563,96571.0,96568.0,0.34744]
[1733803351695,0.93487201,96570.0,96568.0,0.44474]
[1733803351890,0.16419201,96569.0,96568.0,0.46020559]
[1733803352094,8e-05,96601.0,96568.0,3.6392448]
[1733803352297,8e-05,96601.0,96600.0,0.3608]
[1733803352592,8e-05,96601.0,96600.0,3.63725632]
[1733803353094,4e-05,96601.0,96600.0,4.31524136]
[1733803354994,0.31068,96609.0,96600.0,4.31523005]
[1733803355194,0.31068,96609.0,96608.0,0.3608]
[1733803355396,0.31068,96609.0,96608.0,3.22658175]
[1733803355695,0.31068,96609.0,96608.0,3.80188804]
[1733803355995,0.31064,96609.0,96608.0,3.80188804]
[1733803356491,0.051716,96629.0,96608.0,3.80188804]
[1733803356697,0.31064,96616.0,96609.0,3.44104804]
[1733803356892,0.01556001,96646.0,96614.0,0.3608]
[1733803356893,0.08613383,96638.0,96614.0,0.3608]
[1733803357094,0.051711,96637.0,96635.0,0.54097981]
[1733803357290,0.051711,96637.0,96636.0,1.07579181]
[1733803357490,0.051711,96637.0,96636.0,0.87280481]
[1733803357791,0.051711,96637.0,96636.0,1.35336409]
[1733803357988,0.05983099,96637.0,96636.0,0.87280481]
[1733803358189,0.05983099,96637.0,96636.0,0.19486297]
[1733803358991,0.26097459,96640.0,96636.0,0.19486297]
[1733803359297,0.051717,96626.0,96622.0,0.3614]
[1733803359496,0.03951801,96624.0,96623.0,0.0006]
[1733803359990,0.03951801,96624.0,96622.0,0.3608]
[1733803360305,0.051736,96591.0,96590.0,1e-06]
[1733803360499,0.7216,96591.0,96552.0,0.42045885]
[1733803360799,0.26165964,96562.0,96547.0,0.3608]
[1733803360993,8e-05,96553.0,96547.0,0.3608]
[1733803361198,0.3608,96560.0,96548.0,9.968e-05]
[1733803361496,0.3608,96560.0,96549.0,0.3608]
[1733803361687,0.3608,96570.0,96559.0,4e-05]
[1733803361883,0.3608,96580.0,96559.0,4e-05]
[1733803362087,0.62245964,96580.0,96569.0,4e-05]
[1733803362301,0.051742,96579.0,96548.0,0.36089968]
[1733803362989,0.3608,96572.0,96548.0,0.36089968]
[1733803363387,0.31340664,96570.0,96548.0,0.36089968]
[1733803363795,0.26165964,96570.0,96548.0,0.36089968]
[1733803364602,0.26165964,96570.0,96559.0,0.00142184]
[1733803364791,0.31340664,96570.0,96559.0,0.00142184]
[1733803365292,0.05175,96565.0,96559.0,0.00142184]
[1733803365490,0.05175,96565.0,96562.0,0.00142184]
[1733803365691,0.12710856,96570.0,96562.0,0.00142184]
[1733803365898,0.15670768,96571.0,96562.0,0.00142184]
[1733803366096,0.0096568,96578.0,96562.0,0.00142184]
[1733803366287,0.3608,96579.0,96562.0,0.00142184]
[1733803366486,0.3608,96579.0,96570.0,0.00142184]
[1733803366487,0.051746,96573.0,96570.0,0.00142184]
[1733803366792,0.37020803,96579.0,96570.0,0.00142184]
[1733803366793,0.00940803,96579.0,96570.0,0.00142184]
[1733803366988,0.051738,96586.0,96575.0,0.3608]
[1733803367402,0.0096514,96592.0,96575.0,0.3608]
[1733803367589,0.05174,96584.0,96583.0,0.00142184]
[1733803368396,0.051738,96586.0,96583.0,0.00155623]
[1733803368601,0.051738,96586.0,96583.0,0.00013439]
[1733803368992,0.3608,96584.0,96583.0,0.00013439]
[1733803369193,0.051738,96586.0,96583.0,0.00013439]
[1733803369596,0.051738,96586.0,96585.0,4e-05]
[1733803370095,0.62245964,96600.0,96585.0,4e-05]
[1733803370096,0.3608,96591.0,96585.0,4e-05]
[1733803370500,0.412536,96591.0,96590.0,4e-05]
[1733803373307,0.712536,96591.0,96590.0,4e-05]
[1733803373505,0.712536,96591.0,96583.0,0.00013439]
[1733803373506,0.051739,96584.0,96583.0,0.00013439]
[1733803373702,0.412539,96584.0,96583.0,0.00013439]
[1733803373894,1.912539,96584.0,96583.0,0.00013439]
[1733803374400,1.912579,96584.0,96583.0,0.00013439]
[1733803374605,1.912579,96584.0,96583.0,0.83603216]
[1733803375003,1.912579,96584.0,96583.0,1.25649101]
[1733803375306,1.912579,96584.0,96583.0,1.35222811]
[1733803375503,1.912579,96584.0,96583.0,0.3731296]
[1733803376002,4e-05,96584.0,96583.0,0.3731296]
[1733803376306,0.051779,96584.0,96583.0,0.3731296]
[1733803376501,0.0611672,96584.0,96583.0,0.00013439]
[1733803376706,0.0611672,96584.0,96583.0,0.32922609]
[1733803377000,0.0611672,96584.0,96583.0,0.69721268]
[1733803377304,0.0611672,96584.0,96583.0,0.32922609]
[1733803377706,0.051779,96584.0,96583.0,0.32922609]
[1733803377898,4e-05,96584.0,96583.0,0.32922609]
[1733803378101,4e-05,96584.0,96583.0,0.7213938]
[1733803378997,0.051731,96600.0,96583.0,0.7213938]
[1733803379195,0.051731,96600.0,96599.0,0.36793283]
[1733803379393,0.051731,96600.0,96599.0,0.3291717]
[1733803379705,0.051731,96600.0,96599.0,0.7223892]
[1733803379904,0.051731,96600.0,96599.0,0.72239015]
[1733803380108,0.051731,96600.0,96599.0,0.3291717]
[1733803380311,0.051731,96600.0,96599.0,0.72236132]
[1733803380508,0.06108054,96600.0,96599.0,0.72236132]
[1733803380705,0.06108054,96600.0,96599.0,0.3291717]
[1733803380898,0.051727,96607.0,96599.0,0.72235928]
[1733803381207,0.051727,96607.0,96606.0,0.3608]
[1733803381406,0.051727,96607.0,96606.0,1.08368768]
[1733803381607,0.051727,96607.0,96606.0,1.08251941]
[1733803381999,0.01556001,96621.0,96606.0,1.08251941]
[1733803382194,0.051722,96616.0,96615.0,0.36763977]
[1733803382401,0.051722,96616.0,96615.0,0.32977204]
[1733803382603,0.051722,96616.0,96615.0,0.69741181]
[1733803382806,0.051722,96616.0,96615.0,1.08228629]
[1733803383311,0.00921379,96621.0,96615.0,1.08228629]
[1733803383605,0.01556001,96630.0,96616.0,0.72158407]
[1733803383809,0.051713,96633.0,96629.0,0.3608]
[1733803383999,0.051713,96633.0,96632.0,0.3608]
[1733803384316,0.00942022,96640.0,96632.0,1.0820883]
[1733803384507,0.051704,96650.0,96639.0,0.3608]
[1733803384697,0.051704,96650.0,96649.0,0.3608]
[1733803385006,0.051704,96650.0,96649.0,0.69072579]
[1733803385404,0.051704,96650.0,96649.0,1.08130483]
[1733803385703,0.01552,96663.0,96649.0,0.67004579]
[1733803385908,0.01552,96673.0,96657.0,0.30564201]
[1733803385909,0.0517,96658.0,96657.0,0.30564201]
[1733803386112,0.051693,96671.0,96662.0,4e-05]
[1733803386414,0.37019477,96672.0,96662.0,4e-05]
[1733803386712,0.051693,96671.0,96670.0,4e-05]
[1733803386910,0.051704,96650.0,96649.0,0.34023375]
[1733803387106,0.051704,96650.0,96649.0,0.66102024]
[1733803387308,0.051784,96650.0,96649.0,0.66102024]
[1733803387610,0.051784,96650.0,96649.0,1.02779065]
[1733803387811,0.051784,96650.0,96649.0,0.66102024]
[1733803388005,8e-05,96650.0,96649.0,0.66102024]
[1733803388516,0.3608,96675.0,96649.0,0.66102024]
[1733803388517,0.01552,96684.0,96649.0,0.66244073]
[1733803388705,0.051692,96672.0,96671.0,0.3608]
[1733803388901,0.051692,96672.0,96671.0,0.66558361]
[1733803389515,0.051692,96672.0,96671.0,0.36222049]
[1733803390217,0.01552,96693.0,96671.0,1.05331924]
[1733803390514,0.1,96700.0,96671.0,1.05331924]
[1733803390515,0.051682,96691.0,96684.0,0.3608]
[1733803390720,0.051682,96691.0,96684.0,0.36084]
[1733803391018,1.5,96713.0,96684.0,0.36084]
[1733803391019,0.01552,96717.0,96684.0,0.67961308]
[1733803391214,0.051672,96710.0,96709.0,0.34012]
[1733803391605,0.00948051,96717.0,96709.0,0.34154049]
[1733803391813,0.051663,96728.0,96712.0,0.3608]
[1733803392010,0.051663,96728.0,96727.0,0.3608]
[1733803392515,0.051663,96728.0,96727.0,0.36222049]
[1733803393606,0.051663,96728.0,96712.0,0.3608]
[1733803393920,0.05167,96713.0,96712.0,0.3608]
[1733803394618,0.05175,96713.0,96712.0,0.3608]
[1733803395712,0.05175,96713.0,96710.0,8.798e-05]
[1733803396217,8e-05,96711.0,96710.0,8.798e-05]
[1733803397216,1.5,96724.0,96710.0,8.798e-05]
[1733803397412,1.50930688,96724.0,96710.0,8.798e-05]
[1733803397613,0.051672,96711.0,96710.0,8.798e-05]
[1733803397918,0.051672,96710.0,96670.0,0.3608]
[1733803398118,0.051693,96671.0,96670.0,0.3608]
[1733803398326,0.051773,96671.0,96670.0,0.3608]
[1733803398614,0.05027795,96663.0,96658.0,0.3608]
[1733803398818,0.051698,96661.0,96659.0,0.00010115]
[1733803399213,0.00933982,96671.0,96659.0,0.00010115]
[1733803399516,0.3608,96685.0,96666.0,0.3608]
[1733803399721,0.051694,96669.0,96666.0,0.3608]
[1733803399920,0.3608,96685.0,96666.0,0.3608]
[1733803399921,0.37027444,96685.0,96666.0,0.3608]
[1733803400112,0.051695,96667.0,96666.0,0.3608]
[1733803401419,0.051695,96667.0,96659.0,0.00010115]
[1733803401420,0.26165964,96680.0,96659.0,0.00010115]
[1733803401620,0.051692,96673.0,96666.0,0.3608]
[1733803401922,0.37027444,96685.0,96666.0,0.3608]
[1733803401923,0.051693,96671.0,96666.0,0.3608]
[1733803402117,0.051694,96669.0,96666.0,0.3608]
[1733803405317,0.051695,96667.0,96666.0,0.3608]
[1733803405717,0.22638915,96675.0,96666.0,0.3608]
[1733803405920,0.412495,96667.0,96659.0,0.00010115]
[1733803406123,0.051704,96650.0,96649.0,0.3608]
[1733803406325,8e-05,96660.0,96649.0,0.3608]
[1733803406618,0.3608,96657.0,96639.0,4e-05]
[1733803406924,0.051709,96640.0,96639.0,4e-05]
[1733803407116,0.051709,96640.0,96639.0,0.00016289]
[1733803407516,0.051789,96640.0,96639.0,0.00016289]
[1733803408215,8e-05,96640.0,96639.0,0.00016289]
[1733803409322,8e-05,96660.0,96639.0,0.24261801]
[1733803409531,8e-05,96660.0,96655.0,0.3608]
[1733803409819,0.051701,96657.0,96655.0,0.3608]
[1733803411422,0.051701,96657.0,96649.0,0.3608]
[1733803411626,0.051704,96650.0,96649.0,0.3608]
[1733803411825,8e-05,96650.0,96639.0,0.00016289]
[1733803412018,0.051709,96640.0,96639.0,0.00016289]
[1733803412722,0.051789,96640.0,96639.0,0.00016289]
[1733803412927,0.06136919,96640.0,96639.0,0.00016289]
[1733803420033,8e-05,96640.0,96639.0,0.00016289]
[1733803420920,0.051701,96656.0,96639.0,0.3013935]
[1733803421119,8e-05,96660.0,96655.0,0.3608]
[1733803421426,0.051697,96665.0,96655.0,0.66497643]
[1733803421632,0.051697,96665.0,96664.0,0.3608]
[1733803421930,0.051692,96674.0,96664.0,0.60401883]
[1733803422229,0.051692,96674.0,96673.0,0.36084]
[1733803422620,0.051692,96674.0,96673.0,0.36092289]
[1733803422927,0.051692,96674.0,96673.0,0.00012289]
[1733803425323,0.051692,96674.0,96673.0,0.36092289]
[1733803425324,0.06120734,96674.0,96673.0,0.36092289]
[1733803425529,0.06120734,96674.0,96673.0,0.36211387]
[1733803425726,0.01552,96687.0,96673.0,0.36211387]
[1733803425926,0.051692,96674.0,96673.0,0.36211387]
[1733803426333,0.051692,96674.0,96673.0,0.60596739]
[1733803426519,0.051692,96674.0,96673.0,0.36211387]
[1733803426723,0.051692,96674.0,96673.0,0.72291387]
[1733803426933,0.051692,96674.0,96673.0,1.02409954]
[1733803427936,0.0611638,96674.0,96673.0,1.02421197]
[1733803429336,0.0611638,96674.0,96673.0,1.02841185]
[1733803430029,0.0611638,96674.0,96673.0,1.02417223]
[1733803431628,0.051692,96674.0,96673.0,1.02417223]
[1733803432028,0.051692,96674.0,96673.0,1.39082724]
[1733803432431,0.051692,96674.0,96673.0,1.02429542]
[1733803434935,0.051692,96674.0,96673.0,0.72291387]
[1733803435142,0.3,96674.0,96658.0,0.36670988]
[1733803435436,0.051695,96660.0,96659.0,0.30146938]
[1733803435630,0.051695,96660.0,96657.0,0.3608]
[1733803435631,0.051694,96662.0,96657.0,0.3608]
[1733803435827,0.051695,96660.0,96658.0,0.29203625]
[1733803436028,0.051696,96658.0,96641.0,0.36670988]
[1733803436233,0.051705,96640.0,96639.0,0.36674988]
[1733803436439,0.051705,96641.0,96640.0,0.00011469]
[1733803436735,0.051711,96629.0,96628.0,0.00052]
[1733803436935,0.051711,96629.0,96628.0,1e-08]
[1733803437130,4e-05,96629.0,96618.0,0.3608]
[1733803437446,0.051717,96619.0,96618.0,0.3608]
[1733803437740,0.051757,96619.0,96618.0,0.3608932]
[1733803438432,4e-05,96619.0,96618.0,0.3608932]
[1733803439436,4e-05,96619.0,96618.0,0.37037182]
[1733803439636,4e-05,96619.0,96618.0,0.3608932]
[1733803443840,0.3608,96660.0,96618.0,0.6608932]
[1733803444048,0.051784,96642.0,96641.0,0.3608]
[1733803445840,8e-05,96642.0,96641.0,0.3608]
[1733803446235,8e-05,96642.0,96641.0,0.40604209]
[1733803446538,8e-05,96642.0,96641.0,0.3608]
[1733803447134,8e-05,96642.0,96641.0,0.40604209]
[1733803448640,8e-05,96642.0,96641.0,0.40612435]
[1733803449546,8e-05,96642.0,96641.0,0.72823565]
[1733803449838,8e-05,96642.0,96641.0,0.36088226]
[1733803451241,0.051685,96678.0,96641.0,0.40612435]
[1733803451434,0.26626913,96690.0,96667.0,0.3608]
[1733803451636,0.051683,96681.0,96677.0,0.00095999]
[1733803451842,0.06137022,96682.0,96677.0,0.00095999]
[1733803452047,0.01552,96681.0,96677.0,0.00095999]
[1733803452247,0.05169,96668.0,96667.0,0.3608]